[Event "Titled Tuesday Blitz March 28 Late 2023"]
[White "Godzwon, Iwo"]
[Black "Sarana, Alexey"]
[WhiteFideId "21802483"]
[BlackFideId "24133795"]
[WhiteElo "2284"]
[BlackElo "2714"]
[Result "1/2-1/2"]
[Round "02"]
[TimeControl "180+2"]
[Date "2023.03.28"]
[WhiteClock "0:00:06"]
[BlackClock "0:00:19"]

1. e4 {[%clk 0:02:57]}  c5 {[%clk 0:02:59]} 2. Nf3 {[%clk 0:02:57]}  d6 {[%clk 0:03:00]} 3. Bb5+ {[%clk 0:02:54]}  Nd7 {[%clk 0:02:59]} 4. a4 {[%clk 0:02:29]}  Nf6 {[%clk 0:02:58]} 5. Nc3 {[%clk 0:02:27]}  g6 {[%clk 0:02:58]} 6. O-O {[%clk 0:02:27]}  Bg7 {[%clk 0:02:59]} 7. d4 {[%clk 0:02:21]}  cxd4 {[%clk 0:02:53]} 8. Qxd4 {[%clk 0:02:21]}  O-O {[%clk 0:02:53]} 9. Bg5 {[%clk 0:02:17]}  a6 {[%clk 0:02:50]} 10. Bxd7 {[%clk 0:02:15]}  Bxd7 {[%clk 0:02:50]} 11. Rfe1 {[%clk 0:02:10]}  Bc6 {[%clk 0:02:50]} 12. Qd3 {[%clk 0:02:09]}  Qa5 {[%clk 0:02:46]} 13. Bd2 {[%clk 0:02:04]}  Qh5 {[%clk 0:02:45]} 14. Nd4 {[%clk 0:02:01]}  Ng4 {[%clk 0:02:40]} 15. h3 {[%clk 0:01:59]}  Ne5 {[%clk 0:02:35]} 16. Qf1 {[%clk 0:01:51]}  Rac8 {[%clk 0:02:35]} 17. Nxc6 {[%clk 0:01:47]}  Rxc6 {[%clk 0:02:36]} 18. Nd5 {[%clk 0:01:34]}  Rxc2 {[%clk 0:02:35]} 19. Nxe7+ {[%clk 0:01:33]}  Kh8 {[%clk 0:02:35]} 20. Bc3 {[%clk 0:01:34]}  Qg5 {[%clk 0:02:35]} 21. Bxe5 {[%clk 0:01:01]}  Bxe5 {[%clk 0:02:33]} 22. Nd5 {[%clk 0:01:01]}  Rxb2 {[%clk 0:02:24]} 23. Rad1 {[%clk 0:00:49]}  Bg7 {[%clk 0:02:15]} 24. Ne3 {[%clk 0:00:41]}  Rb4 {[%clk 0:02:03]} 25. Rxd6 {[%clk 0:00:37]}  Rxa4 {[%clk 0:02:01]} 26. Qd3 {[%clk 0:00:35]}  b5 {[%clk 0:01:59]} 27. Rd1 {[%clk 0:00:29]}  Ra2 {[%clk 0:01:58]} 28. Rd8 {[%clk 0:00:26]}  Qf4 {[%clk 0:01:48]} 29. Rxf8+ {[%clk 0:00:21]}  Bxf8 {[%clk 0:01:48]} 30. Qd4+ {[%clk 0:00:17]}  Kg8 {[%clk 0:00:40]} 31. Nd5 {[%clk 0:00:16]}  Qh6 {[%clk 0:00:21]} 32. Nf6+ {[%clk 0:00:14]}  Kh8 {[%clk 0:00:21]} 33. Nh5+ {[%clk 0:00:09]}  Kg8 {[%clk 0:00:21]} 34. Nf6+ {[%clk 0:00:09]}  Kh8 {[%clk 0:00:21]} 35. Nh5+ {[%clk 0:00:05]}  Kg8 {[%clk 0:00:19]} 36. Nf6+ {[%clk 0:00:06]} 1/2-1/2


[Site "https://www.chess.com"]

[Event "Titled Tuesday Blitz March 28 Late 2023"]
[White "Krstulovic, Alex"]
[Black "Sadhwani, Raunak"]
[WhiteFideId "760056"]
[BlackFideId "35093487"]
[WhiteElo "2311"]
[BlackElo "2631"]
[Result "0-1"]
[Round "02"]
[TimeControl "180+2"]
[Date "2023.03.28"]
[WhiteClock "0:00:36"]
[BlackClock "0:01:06"]

1. e4 {[%clk 0:03:00]}  g6 {[%clk 0:03:00]} 2. d4 {[%clk 0:03:00]}  Bg7 {[%clk 0:03:01]} 3. Nc3 {[%clk 0:03:01]}  d6 {[%clk 0:03:01]} 4. g3 {[%clk 0:02:55]}  Nf6 {[%clk 0:02:59]} 5. Bg2 {[%clk 0:02:51]}  O-O {[%clk 0:03:00]} 6. Nge2 {[%clk 0:02:49]}  Nc6 {[%clk 0:03:00]} 7. O-O {[%clk 0:02:48]}  e5 {[%clk 0:03:00]} 8. h3 {[%clk 0:02:47]}  Re8 {[%clk 0:02:39]} 9. Be3 {[%clk 0:02:46]}  exd4 {[%clk 0:02:36]} 10. Nxd4 {[%clk 0:02:47]}  Ne5 {[%clk 0:02:37]} 11. b3 {[%clk 0:02:38]}  Ned7 {[%clk 0:02:37]} 12. Qd2 {[%clk 0:02:37]}  Nc5 {[%clk 0:02:37]} 13. f3 {[%clk 0:02:36]}  Bd7 {[%clk 0:02:28]} 14. Rad1 {[%clk 0:02:35]}  h5 {[%clk 0:02:27]} 15. Kh2 {[%clk 0:02:32]}  a6 {[%clk 0:02:19]} 16. Bg5 {[%clk 0:02:21]}  Qc8 {[%clk 0:02:19]} 17. Nd5 {[%clk 0:02:16]}  Nh7 {[%clk 0:01:44]} 18. Ne7+ {[%clk 0:01:47]}  Rxe7 {[%clk 0:01:44]} 19. Bxe7 {[%clk 0:01:48]}  Qe8 {[%clk 0:01:44]} 20. b4 {[%clk 0:01:35]}  Nxe4 {[%clk 0:01:31]} 21. fxe4 {[%clk 0:01:34]}  Qxe7 {[%clk 0:01:32]} 22. c4 {[%clk 0:01:29]}  h4 {[%clk 0:01:29]} 23. gxh4 {[%clk 0:01:23]}  Qxh4 {[%clk 0:01:30]} 24. Qf2 {[%clk 0:01:22]}  Qe7 {[%clk 0:01:25]} 25. Nf3 {[%clk 0:00:59]}  Nf6 {[%clk 0:01:22]} 26. e5 {[%clk 0:00:58]}  dxe5 {[%clk 0:01:22]} 27. Ng5 {[%clk 0:00:54]}  Bf5 {[%clk 0:01:13]} 28. c5 {[%clk 0:00:50]}  e4 {[%clk 0:01:10]} 29. Qe3 {[%clk 0:00:36]}  Bh6 {[%clk 0:01:06]} 30. h4 {[%clk 0:00:36]}  Ng4+ {[%clk 0:01:06]} 0-1


[Site "https://www.chess.com"]

[Event "Titled Tuesday Blitz March 28 Late 2023"]
[White "Martinez Alcantara, Jose Eduardo"]
[Black "Goroshkov, Maksym"]
[WhiteFideId "3805662"]
[BlackFideId "14142716"]
[WhiteElo "2712"]
[BlackElo "2322"]
[Result "1-0"]
[Round "02"]
[TimeControl "180+2"]
[Date "2023.03.28"]
[WhiteClock "0:00:07"]
[BlackClock "0:00:06"]

1. e4 {[%clk 0:03:00]}  e5 {[%clk 0:02:59]} 2. Nf3 {[%clk 0:03:00]}  d6 {[%clk 0:03:00]} 3. Nc3 {[%clk 0:03:00]}  Nf6 {[%clk 0:02:59]} 4. Bc4 {[%clk 0:03:00]}  Be7 {[%clk 0:02:59]} 5. d3 {[%clk 0:03:00]}  O-O {[%clk 0:02:58]} 6. a3 {[%clk 0:03:01]}  Bg4 {[%clk 0:02:58]} 7. h3 {[%clk 0:03:00]}  Bh5 {[%clk 0:02:58]} 8. g4 {[%clk 0:03:00]}  Bg6 {[%clk 0:02:58]} 9. Nh4 {[%clk 0:02:46]}  c6 {[%clk 0:02:57]} 10. Ba2 {[%clk 0:02:38]}  d5 {[%clk 0:02:56]} 11. Qf3 {[%clk 0:02:32]}  dxe4 {[%clk 0:02:51]} 12. dxe4 {[%clk 0:02:32]}  Bxe4 {[%clk 0:02:43]} 13. Nxe4 {[%clk 0:02:18]}  Nxe4 {[%clk 0:02:43]} 14. Nf5 {[%clk 0:02:15]}  Ng5 {[%clk 0:02:37]} 15. Bxg5 {[%clk 0:01:55]}  Bxg5 {[%clk 0:02:38]} 16. Rd1 {[%clk 0:01:55]}  Qb6 {[%clk 0:02:30]} 17. Nd6 {[%clk 0:01:46]}  Bf4 {[%clk 0:02:27]} 18. O-O {[%clk 0:01:33]}  Na6 {[%clk 0:02:25]} 19. b4 {[%clk 0:01:32]}  Nc7 {[%clk 0:02:14]} 20. c4 {[%clk 0:01:23]}  Ne6 {[%clk 0:02:06]} 21. c5 {[%clk 0:01:22]}  Qc7 {[%clk 0:02:06]} 22. Bxe6 {[%clk 0:01:23]}  fxe6 {[%clk 0:02:07]} 23. Kg2 {[%clk 0:01:17]}  Qe7 {[%clk 0:02:00]} 24. Ne4 {[%clk 0:01:16]}  h5 {[%clk 0:01:42]} 25. Rd6 {[%clk 0:01:16]}  a5 {[%clk 0:01:31]} 26. Qb3 {[%clk 0:01:14]}  hxg4 {[%clk 0:01:26]} 27. hxg4 {[%clk 0:01:14]}  Rae8 {[%clk 0:01:25]} 28. bxa5 {[%clk 0:01:11]}  Qh4 {[%clk 0:01:24]} 29. Qh3 {[%clk 0:01:11]}  Qxh3+ {[%clk 0:01:19]} 30. Kxh3 {[%clk 0:01:12]}  Ra8 {[%clk 0:01:18]} 31. Rb1 {[%clk 0:01:07]}  Rf7 {[%clk 0:01:16]} 32. g5 {[%clk 0:00:55]}  Rxa5 {[%clk 0:01:14]} 33. g6 {[%clk 0:00:54]}  Rxa3+ {[%clk 0:01:14]} 34. Kg2 {[%clk 0:00:53]}  Rf8 {[%clk 0:01:00]} 35. Rxb7 {[%clk 0:00:53]}  Ra4 {[%clk 0:00:56]} 36. Rdd7 {[%clk 0:00:51]}  Bh6 {[%clk 0:00:55]} 37. Ng3 {[%clk 0:00:18]}  Raf4 {[%clk 0:00:49]} 38. Rb2 {[%clk 0:00:16]}  R4f6 {[%clk 0:00:37]} 39. Rd6 {[%clk 0:00:16]}  Rc8 {[%clk 0:00:37]} 40. Rb6 {[%clk 0:00:17]}  Rcf8 {[%clk 0:00:37]} 41. Ne4 {[%clk 0:00:13]}  Rxg6+ {[%clk 0:00:38]} 42. Kf1 {[%clk 0:00:11]}  Rf4 {[%clk 0:00:37]} 43. Nc3 {[%clk 0:00:08]}  Rgf6 {[%clk 0:00:33]} 44. Nd1 {[%clk 0:00:09]}  e4 {[%clk 0:00:29]} 45. Ke2 {[%clk 0:00:08]}  Bg5 {[%clk 0:00:21]} 46. Rbxc6 {[%clk 0:00:08]}  Bh4 {[%clk 0:00:21]} 47. Rxe6 {[%clk 0:00:08]}  Rf7 {[%clk 0:00:13]} 48. Re8+ {[%clk 0:00:07]}  Kh7 {[%clk 0:00:13]} 49. Rce6 {[%clk 0:00:07]}  Bxf2 {[%clk 0:00:13]} 50. c6 {[%clk 0:00:08]}  Bb6 {[%clk 0:00:13]} 51. Rxe4 {[%clk 0:00:08]}  Rxe4+ {[%clk 0:00:12]} 52. Rxe4 {[%clk 0:00:09]}  Rf6 {[%clk 0:00:13]} 53. Rc4 {[%clk 0:00:10]}  Bc7 {[%clk 0:00:13]} 54. Nc3 {[%clk 0:00:10]}  g5 {[%clk 0:00:12]} 55. Nd5 {[%clk 0:00:10]}  Rf7 {[%clk 0:00:12]} 56. Rb4 {[%clk 0:00:09]}  Bd6 {[%clk 0:00:09]} 57. Re4 {[%clk 0:00:08]}  Bc7 {[%clk 0:00:04]} 58. Kd3 {[%clk 0:00:07]}  Kg6 {[%clk 0:00:04]} 59. Rb4 {[%clk 0:00:07]}  Kf5 {[%clk 0:00:04]} 60. Rb7 {[%clk 0:00:07]}  Ke5 {[%clk 0:00:03]} 61. Nxc7 {[%clk 0:00:06]}  g4 {[%clk 0:00:03]} 62. Nb5 {[%clk 0:00:06]}  Rf3+ {[%clk 0:00:03]} 63. Kc4 {[%clk 0:00:06]}  Rf2 {[%clk 0:00:03]} 64. Rg7 {[%clk 0:00:06]}  Rc2+ {[%clk 0:00:03]} 65. Nc3 {[%clk 0:00:06]}  Ra2 {[%clk 0:00:03]} 66. Rxg4 {[%clk 0:00:05]}  Ra7 {[%clk 0:00:04]} 67. Rg5+ {[%clk 0:00:06]}  Kd6 {[%clk 0:00:04]} 68. Nb5+ {[%clk 0:00:06]}  Kxc6 {[%clk 0:00:05]} 69. Nxa7+ {[%clk 0:00:06]}  Kb6 {[%clk 0:00:06]} 70. Rg6+ {[%clk 0:00:07]}  Ka5 {[%clk 0:00:06]} 71. Rf6 {[%clk 0:00:07]} 1-0


[Site "https://www.chess.com"]

[Event "Titled Tuesday Blitz March 28 Late 2023"]
[White "Kramnik, Vladimir"]
[Black "Kavutskiy, Konstantin"]
[WhiteFideId "4101588"]
[BlackFideId "2026384"]
[WhiteElo "2712"]
[BlackElo "2369"]
[Result "1/2-1/2"]
[Round "02"]
[TimeControl "180+2"]
[Date "2023.03.28"]
[WhiteClock "0:00:15"]
[BlackClock "0:00:23"]

1. c4 {[%clk 0:03:00]}  g6 {[%clk 0:02:59]} 2. Nc3 {[%clk 0:02:59]}  Bg7 {[%clk 0:02:59]} 3. g3 {[%clk 0:02:59]}  c5 {[%clk 0:02:58]} 4. Bg2 {[%clk 0:02:59]}  Nc6 {[%clk 0:02:59]} 5. d3 {[%clk 0:02:59]}  d6 {[%clk 0:02:59]} 6. Qd2 {[%clk 0:02:59]}  e6 {[%clk 0:02:58]} 7. Bxc6+ {[%clk 0:02:50]}  bxc6 {[%clk 0:02:58]} 8. b3 {[%clk 0:02:51]}  Ne7 {[%clk 0:02:56]} 9. Bb2 {[%clk 0:02:48]}  O-O {[%clk 0:02:54]} 10. f4 {[%clk 0:02:46]}  Nf5 {[%clk 0:02:46]} 11. Nf3 {[%clk 0:02:43]}  h5 {[%clk 0:02:43]} 12. O-O-O {[%clk 0:02:36]}  a5 {[%clk 0:02:41]} 13. Na4 {[%clk 0:02:31]}  Nd4 {[%clk 0:02:30]} 14. Ng5 {[%clk 0:02:08]}  Rb8 {[%clk 0:02:23]} 15. e3 {[%clk 0:01:56]}  Nf5 {[%clk 0:02:14]} 16. Bxg7 {[%clk 0:01:52]}  Kxg7 {[%clk 0:02:14]} 17. Ne4 {[%clk 0:01:51]}  Qe7 {[%clk 0:01:58]} 18. h3 {[%clk 0:01:43]}  d5 {[%clk 0:01:46]} 19. Nexc5 {[%clk 0:01:42]}  Nxg3 {[%clk 0:01:46]} 20. Rhg1 {[%clk 0:01:42]}  h4 {[%clk 0:01:44]} 21. e4 {[%clk 0:01:34]}  Qf6 {[%clk 0:01:32]} 22. Kc2 {[%clk 0:01:28]}  e5 {[%clk 0:01:25]} 23. f5 {[%clk 0:01:14]}  g5 {[%clk 0:01:16]} 24. Qxa5 {[%clk 0:01:11]}  Ne2 {[%clk 0:01:00]} 25. Qd2 {[%clk 0:01:07]}  Nxg1 {[%clk 0:00:58]} 26. Rxg1 {[%clk 0:01:07]}  Kh6 {[%clk 0:00:59]} 27. Nc3 {[%clk 0:01:01]}  dxc4 {[%clk 0:00:47]} 28. dxc4 {[%clk 0:00:57]}  Rd8 {[%clk 0:00:46]} 29. Qe3 {[%clk 0:00:57]}  Qe7 {[%clk 0:00:43]} 30. Ne2 {[%clk 0:00:50]}  f6 {[%clk 0:00:42]} 31. a4 {[%clk 0:00:47]}  Bd7 {[%clk 0:00:40]} 32. Nc1 {[%clk 0:00:47]}  Be8 {[%clk 0:00:40]} 33. N1d3 {[%clk 0:00:47]}  Bh5 {[%clk 0:00:40]} 34. a5 {[%clk 0:00:45]}  Ra8 {[%clk 0:00:40]} 35. a6 {[%clk 0:00:45]}  Rdc8 {[%clk 0:00:39]} 36. Ra1 {[%clk 0:00:44]}  Rcb8 {[%clk 0:00:39]} 37. Ne6 {[%clk 0:00:41]}  Ra7 {[%clk 0:00:36]} 38. Qc5 {[%clk 0:00:35]}  Qd7 {[%clk 0:00:32]} 39. Kc3 {[%clk 0:00:29]}  Rxb3+ {[%clk 0:00:30]} 40. Kxb3 {[%clk 0:00:24]}  Qxd3+ {[%clk 0:00:31]} 41. Kb4 {[%clk 0:00:17]}  Qd2+ {[%clk 0:00:31]} 42. Kb3 {[%clk 0:00:16]}  Qd3+ {[%clk 0:00:26]} 43. Kb2 {[%clk 0:00:15]}  Qd2+ {[%clk 0:00:25]} 44. Kb3 {[%clk 0:00:15]}  Qd3+ {[%clk 0:00:23]} 1/2-1/2


[Site "https://www.chess.com"]

[Event "Titled Tuesday Blitz March 28 Late 2023"]
[White "Wadsworth, Matthew J"]
[Black "Kamsky, Gata"]
[WhiteFideId "415804"]
[BlackFideId "2000024"]
[WhiteElo "2330"]
[BlackElo "2666"]
[Result "0-1"]
[Round "02"]
[TimeControl "180+2"]
[Date "2023.03.28"]
[WhiteClock "0:00:09"]
[BlackClock "0:00:58"]

1. g3 {[%clk 0:03:00]}  d5 {[%clk 0:02:59]} 2. Nf3 {[%clk 0:03:00]}  Nf6 {[%clk 0:02:59]} 3. Bg2 {[%clk 0:03:00]}  c6 {[%clk 0:02:59]} 4. c4 {[%clk 0:02:59]}  g6 {[%clk 0:02:54]} 5. b3 {[%clk 0:02:52]}  Bg7 {[%clk 0:02:54]} 6. Bb2 {[%clk 0:02:53]}  O-O {[%clk 0:02:54]} 7. O-O {[%clk 0:02:53]}  a5 {[%clk 0:02:53]} 8. d4 {[%clk 0:02:51]}  a4 {[%clk 0:02:52]} 9. Nbd2 {[%clk 0:02:51]}  Qa5 {[%clk 0:02:50]} 10. Qc1 {[%clk 0:02:24]}  Bf5 {[%clk 0:02:45]} 11. Bc3 {[%clk 0:02:23]}  Qa6 {[%clk 0:02:39]} 12. Re1 {[%clk 0:02:10]}  Nbd7 {[%clk 0:02:29]} 13. Nh4 {[%clk 0:02:06]}  Be6 {[%clk 0:02:27]} 14. e4 {[%clk 0:01:58]}  dxe4 {[%clk 0:02:09]} 15. Nxe4 {[%clk 0:01:56]}  Nxe4 {[%clk 0:02:07]} 16. Rxe4 {[%clk 0:01:54]}  Rfe8 {[%clk 0:01:57]} 17. Rxe6 {[%clk 0:01:50]}  fxe6 {[%clk 0:01:57]} 18. Bh3 {[%clk 0:01:48]}  Nf8 {[%clk 0:01:55]} 19. Nf3 {[%clk 0:01:42]}  c5 {[%clk 0:01:45]} 20. Qe3 {[%clk 0:01:15]}  cxd4 {[%clk 0:01:36]} 21. Nxd4 {[%clk 0:01:14]}  axb3 {[%clk 0:01:29]} 22. axb3 {[%clk 0:01:12]}  Qb6 {[%clk 0:01:28]} 23. Re1 {[%clk 0:00:49]}  e5 {[%clk 0:01:28]} 24. Nb5 {[%clk 0:00:48]}  Qxe3 {[%clk 0:01:27]} 25. Rxe3 {[%clk 0:00:48]}  Red8 {[%clk 0:01:24]} 26. Bxe5 {[%clk 0:00:36]}  Bxe5 {[%clk 0:01:18]} 27. Rxe5 {[%clk 0:00:36]}  Kf7 {[%clk 0:01:17]} 28. Nc7 {[%clk 0:00:32]}  Ra1+ {[%clk 0:01:12]} 29. Kg2 {[%clk 0:00:33]}  Rd2 {[%clk 0:01:09]} 30. Nd5 {[%clk 0:00:16]}  e6 {[%clk 0:01:07]} 31. Nf4 {[%clk 0:00:12]}  Raa2 {[%clk 0:01:04]} 32. Bxe6+ {[%clk 0:00:10]}  Nxe6 {[%clk 0:01:02]} 33. Nxe6 {[%clk 0:00:11]}  Rxf2+ {[%clk 0:01:01]} 34. Kh3 {[%clk 0:00:11]}  Kf6 {[%clk 0:01:00]} 35. Re3 {[%clk 0:00:10]}  h5 {[%clk 0:00:58]} 36. g4 {[%clk 0:00:08]}  Rxh2+ {[%clk 0:00:58]} 37. Kg3 {[%clk 0:00:09]}  h4+ {[%clk 0:00:58]} 38. Kf4 {[%clk 0:00:09]}  Rhf2+ {[%clk 0:00:59]} 39. Ke4 {[%clk 0:00:09]}  Kxe6 {[%clk 0:00:58]} 0-1


[Site "https://www.chess.com"]

[Event "Titled Tuesday Blitz March 28 Late 2023"]
[White "Durarbayli, Vasif"]
[Black "Srinath, Rao S.V."]
[WhiteFideId "13402935"]
[BlackFideId "5028876"]
[WhiteElo "2543"]
[BlackElo "2196"]
[Result "0-1"]
[Round "02"]
[TimeControl "180+2"]
[Date "2023.03.28"]
[WhiteClock "0:00:01"]
[BlackClock "0:00:38"]

1. e4 {[%clk 0:03:00]}  e6 {[%clk 0:02:54]} 2. d4 {[%clk 0:03:00]}  d5 {[%clk 0:02:54]} 3. e5 {[%clk 0:03:01]}  c5 {[%clk 0:02:53]} 4. c3 {[%clk 0:03:02]}  Nc6 {[%clk 0:02:53]} 5. Nf3 {[%clk 0:03:02]}  Bd7 {[%clk 0:02:52]} 6. Bd3 {[%clk 0:03:03]}  cxd4 {[%clk 0:02:51]} 7. cxd4 {[%clk 0:03:04]}  Qb6 {[%clk 0:02:51]} 8. O-O {[%clk 0:03:04]}  Nxd4 {[%clk 0:02:51]} 9. Nbd2 {[%clk 0:03:05]}  Ne7 {[%clk 0:02:45]} 10. Nxd4 {[%clk 0:03:05]}  Qxd4 {[%clk 0:02:46]} 11. Nf3 {[%clk 0:03:06]}  Qb6 {[%clk 0:02:45]} 12. Be3 {[%clk 0:03:06]}  Qd8 {[%clk 0:02:44]} 13. Re1 {[%clk 0:03:06]}  Ng6 {[%clk 0:02:40]} 14. g3 {[%clk 0:03:00]}  Bb4 {[%clk 0:02:38]} 15. Re2 {[%clk 0:02:59]}  O-O {[%clk 0:02:34]} 16. h4 {[%clk 0:02:39]}  f5 {[%clk 0:02:23]} 17. h5 {[%clk 0:02:27]}  Ne7 {[%clk 0:02:23]} 18. h6 {[%clk 0:02:20]}  g6 {[%clk 0:02:23]} 19. a3 {[%clk 0:02:18]}  Ba5 {[%clk 0:02:23]} 20. Bc5 {[%clk 0:02:16]}  Bb6 {[%clk 0:02:19]} 21. Bd6 {[%clk 0:02:15]}  Bc7 {[%clk 0:02:17]} 22. Bxc7 {[%clk 0:01:44]}  Qxc7 {[%clk 0:02:16]} 23. Rc1 {[%clk 0:01:44]}  Qb6 {[%clk 0:02:15]} 24. Qd2 {[%clk 0:01:40]}  Nc6 {[%clk 0:02:09]} 25. Qf4 {[%clk 0:01:31]}  Rac8 {[%clk 0:02:06]} 26. Rec2 {[%clk 0:01:30]}  Nb8 {[%clk 0:01:44]} 27. Rxc8 {[%clk 0:01:08]}  Bxc8 {[%clk 0:01:44]} 28. b4 {[%clk 0:01:06]}  a6 {[%clk 0:01:39]} 29. Bc2 {[%clk 0:00:42]}  Bd7 {[%clk 0:01:35]} 30. Bb3 {[%clk 0:00:35]}  a5 {[%clk 0:01:25]} 31. Qg5 {[%clk 0:00:18]}  Qd8 {[%clk 0:01:12]} 32. bxa5 {[%clk 0:00:15]}  Nc6 {[%clk 0:01:10]} 33. Qf4 {[%clk 0:00:08]}  Nxa5 {[%clk 0:01:09]} 34. Ba2 {[%clk 0:00:09]}  b5 {[%clk 0:01:06]} 35. Qb4 {[%clk 0:00:09]}  Nc4 {[%clk 0:01:05]} 36. Bxc4 {[%clk 0:00:07]}  bxc4 {[%clk 0:01:04]} 37. Qd6 {[%clk 0:00:07]}  Bc8 {[%clk 0:01:00]} 38. Qc5 {[%clk 0:00:05]}  Rf7 {[%clk 0:00:58]} 39. Rb1 {[%clk 0:00:04]}  Rc7 {[%clk 0:00:57]} 40. Qa5 {[%clk 0:00:05]}  c3 {[%clk 0:00:57]} 41. Nd4 {[%clk 0:00:05]}  Qd7 {[%clk 0:00:46]} 42. Rc1 {[%clk 0:00:05]}  Rc4 {[%clk 0:00:47]} 43. Nb5 {[%clk 0:00:04]}  d4 {[%clk 0:00:47]} 44. Nd6 {[%clk 0:00:03]}  Rc6 {[%clk 0:00:46]} 45. Qb5 {[%clk 0:00:03]}  Rxd6 {[%clk 0:00:41]} 46. Qb4 {[%clk 0:00:01]}  Rc6 {[%clk 0:00:38]} 0-1


[Site "https://www.chess.com"]

[Event "Titled Tuesday Blitz March 28 Late 2023"]
[White "Atanasov, Anthony"]
[Black "Drygalov, Andrey"]
[WhiteFideId "2623897"]
[BlackFideId "24171735"]
[WhiteElo "2206"]
[BlackElo "2471"]
[Result "0-1"]
[Round "02"]
[TimeControl "180+2"]
[Date "2023.03.28"]
[WhiteClock "0:00:04"]
[BlackClock "0:00:34"]

1. d4 {[%clk 0:03:00]}  Nf6 {[%clk 0:02:59]} 2. Nf3 {[%clk 0:03:01]}  d5 {[%clk 0:02:59]} 3. Bf4 {[%clk 0:03:01]}  c5 {[%clk 0:02:58]} 4. e3 {[%clk 0:03:02]}  Nc6 {[%clk 0:02:58]} 5. Nbd2 {[%clk 0:03:02]}  Qb6 {[%clk 0:02:57]} 6. dxc5 {[%clk 0:03:02]}  Qxb2 {[%clk 0:02:57]} 7. Rb1 {[%clk 0:03:02]}  Qc3 {[%clk 0:02:56]} 8. Bb5 {[%clk 0:02:53]}  e6 {[%clk 0:02:56]} 9. O-O {[%clk 0:02:38]}  Be7 {[%clk 0:02:56]} 10. e4 {[%clk 0:02:38]}  O-O {[%clk 0:02:47]} 11. e5 {[%clk 0:02:30]}  Nd7 {[%clk 0:02:22]} 12. Nb3 {[%clk 0:01:56]}  Qb4 {[%clk 0:02:00]} 13. Nbd4 {[%clk 0:01:42]}  Qxc5 {[%clk 0:01:56]} 14. Nxc6 {[%clk 0:01:35]}  bxc6 {[%clk 0:01:51]} 15. Be3 {[%clk 0:01:36]}  Qa3 {[%clk 0:01:40]} 16. Bxc6 {[%clk 0:01:35]}  Rb8 {[%clk 0:01:40]} 17. Qd3 {[%clk 0:01:10]}  Qa5 {[%clk 0:01:15]} 18. Bg5 {[%clk 0:00:30]}  Ba6 {[%clk 0:00:48]} 19. Qe3 {[%clk 0:00:04]}  Bxg5 {[%clk 0:00:47]} 20. Qxg5 {[%clk 0:00:04]}  Bxf1 {[%clk 0:00:45]} 21. Rxf1 {[%clk 0:00:02]}  Qc7 {[%clk 0:00:44]} 22. Ba4 {[%clk 0:00:02]}  Nc5 {[%clk 0:00:43]} 23. Bb3 {[%clk 0:00:02]}  Ne4 {[%clk 0:00:43]} 24. Qf4 {[%clk 0:00:01]}  a5 {[%clk 0:00:39]} 25. a4 {[%clk 0:00:01]}  Nc3 {[%clk 0:00:38]} 26. Nd4 {[%clk 0:00:01]}  Rb4 {[%clk 0:00:38]} 27. Re1 {[%clk 0:00:01]}  Qb6 {[%clk 0:00:36]} 28. Qe3 {[%clk 0:00:01]}  Qxd4 {[%clk 0:00:37]} 29. Qxd4 {[%clk 0:00:01]}  Rxd4 {[%clk 0:00:38]} 30. Kf1 {[%clk 0:00:01]}  h5 {[%clk 0:00:36]} 31. f3 {[%clk 0:00:02]}  Rc8 {[%clk 0:00:36]} 32. Re3 {[%clk 0:00:02]}  Rd1+ {[%clk 0:00:34]} 33. Kf2 {[%clk 0:00:02]}  Ra1 {[%clk 0:00:33]} 34. Rd3 {[%clk 0:00:02]}  Nxa4 {[%clk 0:00:34]} 35. Bxa4 {[%clk 0:00:03]}  Rxa4 {[%clk 0:00:35]} 36. Rb3 {[%clk 0:00:03]}  Rxc2+ {[%clk 0:00:34]} 37. Kg3 {[%clk 0:00:04]}  Raa2 {[%clk 0:00:35]} 38. Rb8+ {[%clk 0:00:04]}  Kh7 {[%clk 0:00:34]} 39. h3 {[%clk 0:00:04]}  Rxg2+ {[%clk 0:00:35]} 40. Kh4 {[%clk 0:00:04]}  Ra4+ {[%clk 0:00:35]} 41. f4 {[%clk 0:00:05]}  Rxf4+ {[%clk 0:00:34]} 42. Kxh5 {[%clk 0:00:04]}  g6# {[%clk 0:00:34]} 0-1


[Site "https://www.chess.com"]

[Event "Titled Tuesday Blitz March 28 Late 2023"]
[White "Horobetz, Graham"]
[Black "Bortnyk, Mykola"]
[WhiteFideId "2047322"]
[BlackFideId "14120836"]
[WhiteElo "2593"]
[BlackElo "2582"]
[Result "0-1"]
[Round "02"]
[TimeControl "180+2"]
[Date "2023.03.28"]
[WhiteClock "0:00:09"]
[BlackClock "0:01:07"]

1. e4 {[%clk 0:03:00]}  Nf6 {[%clk 0:02:59]} 2. e5 {[%clk 0:03:00]}  Nd5 {[%clk 0:03:00]} 3. c4 {[%clk 0:03:00]}  Nb6 {[%clk 0:03:00]} 4. d4 {[%clk 0:02:59]}  d6 {[%clk 0:03:01]} 5. exd6 {[%clk 0:03:00]}  cxd6 {[%clk 0:03:01]} 6. Nc3 {[%clk 0:02:56]}  g6 {[%clk 0:03:01]} 7. Be3 {[%clk 0:02:56]}  Bg7 {[%clk 0:03:01]} 8. Rc1 {[%clk 0:02:56]}  Nc6 {[%clk 0:03:01]} 9. d5 {[%clk 0:02:43]}  Ne5 {[%clk 0:02:59]} 10. b3 {[%clk 0:02:20]}  O-O {[%clk 0:02:57]} 11. Nf3 {[%clk 0:02:20]}  Bg4 {[%clk 0:02:54]} 12. Be2 {[%clk 0:02:20]}  Bxf3 {[%clk 0:02:54]} 13. Bxf3 {[%clk 0:02:21]}  Nbd7 {[%clk 0:02:38]} 14. O-O {[%clk 0:02:17]}  f5 {[%clk 0:02:37]} 15. Nb5 {[%clk 0:01:51]}  f4 {[%clk 0:02:09]} 16. Bd2 {[%clk 0:01:47]}  a5 {[%clk 0:02:08]} 17. Nd4 {[%clk 0:01:32]}  Nc5 {[%clk 0:02:08]} 18. Ne6 {[%clk 0:01:21]}  Nxe6 {[%clk 0:02:05]} 19. dxe6 {[%clk 0:01:22]}  Qc8 {[%clk 0:02:00]} 20. Bc3 {[%clk 0:01:21]}  Nxf3+ {[%clk 0:01:55]} 21. Qxf3 {[%clk 0:01:21]}  Qxe6 {[%clk 0:01:53]} 22. Bxg7 {[%clk 0:01:02]}  Kxg7 {[%clk 0:01:54]} 23. Qxb7 {[%clk 0:01:03]}  f3 {[%clk 0:01:54]} 24. Rfe1 {[%clk 0:00:51]}  Qg4 {[%clk 0:01:11]} 25. Rxe7+ {[%clk 0:00:23]}  Kf6 {[%clk 0:01:11]} 26. g3 {[%clk 0:00:13]}  Ra7 {[%clk 0:01:11]} 27. Qe4 {[%clk 0:00:11]}  Qh3 {[%clk 0:01:07]} 28. Qe6+ {[%clk 0:00:09]}  Qxe6 {[%clk 0:01:07]} 0-1


[Site "https://www.chess.com"]